{"text_format":"1","workbook":"xlsx","n_sheets":4,"sheets":["Harmonogram","WNIOSEK","Arkusz1","Pomocnicz"],"not_rendered":{"charts":0,"images":3,"macros":1,"external_links":1,"defined_names":4,"comments":0,"pivot_tables":0},"unopened":[],"bounds":{"document_bytes":16777216,"sheet_cells":100000,"rows_first":2000,"rows_last":500,"rows_between":2000,"halvings":0,"cell_chars":16384,"cell_head_chars":4096},"cells_cut":0,"cells_raw":0,"read":"whole","date_system":"1900"}

{"sheet":"Harmonogram","index":0,"n_rows":14,"n_cols":12,"rows_kept":14,"cut":false,"hidden":false,"merged":[[7,11,7,12],[8,0,9,0],[8,1,9,2],[5,11,6,12],[8,11,9,12],[5,3,6,4],[7,3,7,4],[8,3,9,4],[9,9,9,10],[5,5,6,5],[1,8,6,8],[8,8,9,8],[1,3,4,4],[1,9,4,12],[5,6,6,6],[5,7,6,7],[0,0,0,8],[0,9,0,10],[12,0,12,2],[12,3,12,4],[7,1,7,2],[1,6,4,7],[5,9,6,9],[5,10,6,10],[1,5,4,5],[1,0,6,0],[1,1,6,2]]}
["Usuwanie wyrobów zawierających azbest z terenu Gminy ",null,null,null,null,null,null,null,null,"Wybierz nazwę Gminy"]
["Lp.","Rodzaj robót",null,"Masa odpadów",null,"Koszt całkowity\nzadania [zł]\n","Termin realizacji\n(dzień, miesiąc, rok)\n",null,"Nakłady\nponiesione\ndo dnia\nzłożenia\nWniosku [zł]\n","Planowane nakłady finansowe [zł]"]
[]
[]
[]
[null,null,null,"Ilość odpadów zawierających azbest [Mg]",null,"Koszt kwalifikowany\nzadania [zł]\n","rozpoczęcie","zakończenie",null,"dotacja\nWFOŚiGW\n","dotacja\nNFOŚiGW\n","środki własne jst/inne"]
[]
[null,"1.",null,"2.",null,"4.","5.","6.","7.","8.","9.","10."]
["1.","Unieszkodliwianie wyrobów zawierających azbest (demontaż, zbieranie, transport)",null,null,null,{"$f":"D9*D13","v":0},null,null,null,{"$f":"0.35*F10*Pomocnicz!K10","v":0},{"$f":"ROUNDDOWN(0.5*F10*Pomocnicz!K10,2)","v":0},{"$f":"F10-J9-K9","v":0}]
[null,null,null,null,null,{"$f":"D9*E14","v":0},null,null,null,{"$f":"J9+K9","v":0}]
[]
[]
["koszt jednostkowy [zł/Mg]"]
[null,null,null,null,{"$f":"IF(D13>700,700,D13)","v":0}]

{"sheet":"WNIOSEK","index":1,"n_rows":124,"n_cols":23,"rows_kept":124,"cut":false,"hidden":false,"merged":[[22,14,22,23],[26,0,26,23],[46,0,46,2],[46,3,46,20],[50,10,50,13],[35,0,35,23],[36,0,36,23],[37,0,37,23],[10,0,10,23],[102,1,102,24],[66,13,66,17],[58,0,58,24],[60,11,60,18],[61,11,61,18],[65,0,65,24],[62,11,62,18],[60,3,60,10],[61,3,61,10],[69,0,69,23],[83,0,83,24],[80,0,80,8],[15,0,15,9],[17,0,17,23],[19,0,19,23],[12,0,12,23],[28,0,28,23],[22,0,22,12],[31,0,31,23],[30,0,30,23],[90,19,90,21],[90,22,90,23],[98,0,98,23],[13,0,13,23],[41,0,41,24],[64,0,64,23],[42,12,42,16],[48,9,48,11],[45,0,45,17],[45,18,45,21],[66,0,66,12],[91,22,92,23],[91,19,92,21],[84,0,84,24],[87,22,87,23],[70,0,70,24],[72,1,78,23],[68,11,68,13],[68,14,68,17],[71,1,71,23],[51,3,51,9],[50,0,50,9],[56,13,56,23],[57,0,57,23],[0,22,0,23],[111,0,111,24],[7,0,7,24],[54,0,54,23],[62,3,62,10],[53,0,53,24],[44,0,44,24],[49,0,49,2],[49,3,49,9],[51,0,51,2],[87,2,87,18],[55,0,55,15],[56,0,56,6],[55,19,55,24],[3,0,3,23],[97,1,97,23],[33,0,33,23],[67,1,67,24],[89,2,89,18],[90,2,90,18],[94,1,94,24],[86,2,86,18],[91,2,92,18],[86,19,86,21],[122,0,122,24],[96,0,96,24],[91,1,92,1],[81,0,81,8],[87,19,87,21],[82,0,82,23],[121,0,121,23],[117,12,117,23],[117,0,117,5],[116,0,116,5],[116,12,116,23],[88,2,88,18],[104,1,104,24],[103,1,103,24],[88,19,88,21],[88,22,88,23],[86,22,86,23],[109,1,109,24],[108,1,108,24],[107,1,107,24],[106,1,106,24],[105,1,105,24],[89,22,89,23],[89,19,89,21]]}
[null,null,null,null,null,null,null,null,null,null,null,null,null,null,null,null,null,null,null,null,null,null,"W-11"]
[]
[]
[" WNIOSEK  O  DOTACJĘ\nw ramach programu priorytetowego  NFOŚiGW pod nazwą \n „Ogólnopolski program finansowania usuwania wyrobów zawierających azbest”\n"]
["Data rejestracji ..............................................."]
["Wpisano do rejestru pod nr ............................"]
[]
["CZĘŚĆ I.  DANE DOTYCZĄCE WNIOSKODAWCY:"]
[]
["1. Nazwa "]
[]
["Adres"]
[]
[]
["telefon"]
[]
["fax"]
[]
["adres poczty elektronicznej, adres e-mail"]
[]
["2. Numery:"]
[" N I P :",null,null,null,null,null,null,null,null,null,null,null,null,null,null,null,null,null,null,"REGON"]
[]
[]
["3. Osoba prowadząca sprawę:"]
["Imię i nazwisko"]
[]
["nr telefonu: "]
[]
["adres poczty elektronicznej, adres e-mail"]
[]
[]
["4.  Rachunek bankowy Wnioskodawcy, na który należy przekazać dotację:"]
["Numer konta bankowego"]
[]
[]
["Nazwa banku"]
[]
[]
["5.  Czy wnioskodawca prowadzi działalność gospodarczą"]
[]
["6. Wartość wskaźnika G dochodów podatkowych na jednego mieszkańca w gminie, o których mowa  w ustawie z dnia 13 listopada 2003 r. o dochodach jednostek samorządu terytorialnego (t.j. Dz.U z "]
["2018 r. poz. 1530 z póź. zm.) na rok 2018 wynosi: ",null,null,null,null,null,null,null,null,null,null,null,{"$f":"Pomocnicz!J10","v":0}]
[]
["CZĘŚĆ II. WNIOSEK "]
["1. Wnioskujemy o przyznanie dotacji na rok 2019 r. w kwocie: ",null,null,null,null,null,null,null,null,null,null,null,null,null,null,null,null,null,{"$f":"Harmonogram!J10","v":0}]
["  słownie: ",null,null,{"$f":"Słownie(S46)","v":"zero złotych "}]
[]
["2. Koszt całkowity zadania :",null,null,null,null,null,null,null,null,{"$f":"Harmonogram!F9","v":0}]
["  słownie: ",null,null,{"$f":"Słownie(J49)","v":"zero złotych "}]
["w tym koszt kwalifikowany zadania ",null,null,null,null,null,null,null,null,null,{"$f":"Harmonogram!F10","v":0}]
["  słownie: ",null,null,{"$f":"Słownie(K51)","v":"zero złotych "}]
[]
["Koszt kwalifikowany zadania nie może przekroczyć iloczynu 700 zł i sumy całkowitego efektu ekologicznego, wyrażonego w Mg unieszkodliwionych odpadów zawierających azbest. "]
["3. Oświadczenie o podatku VAT"]
["Oświadczamy, że w przypadku niniejszego zadania podatek VAT ",null,null,null,null,null,null,null,null,null,null,null,null,null,null,null,null,null,null,"koszt ponoszony  na jego"]
[" realizację i",null,null,null,null,null,null,null,null,"prawo jego",null,null,null,"zgodnie z przepisami ustawy z dnia 11 marca "]
["2004 r. o podatku od towarów i usług (Dz.U.2018.2174 z późn. zm.)"]
["4. Plan finansowania zadaniaw zł:*"]
[]
[null,null,null,"dotacja WFOŚiGW  ",null,null,null,null,null,null,null,{"$f":"Harmonogram!J9","v":0}]
[null,null,null,"dotacja NFOŚiGW",null,null,null,null,null,null,null,{"$f":"Harmonogram!K9","v":0}]
[null,null,null,"inne źródła finansowania/środki własne",null,null,null,null,null,null,null,{"$f":"Harmonogram!L9","v":0}]
[]
["* Planowany montaż finansowy zadania musi być zgodny z warunkami określonymi w „Procedurze dofinansowania przedsięwzięć dotyczących usuwania azbestu i wyrobów zawierających azbest przez WFOŚiGW w Rzeszowie”"]
["5. Dotacja zostanie przeznaczona na finansowanie zadania p.n.: "]
["Usuwanie wyrobów zawierających azbest z terenu Gminy ",null,null,null,null,null,null,null,null,null,null,null,null,{"$f":"Harmonogram!J1","v":"Wybierz nazwę Gminy"}]
[null,"6. Planowane terminy płatności:"]
[null,"IV kwartał*:",null,null,null,null,null,null,null,"2019-10-23",null,"kwota  ",null,null,{"$f":"S46","v":0}]
["* lecz nie później niż do dnia 25.10.2019 r."]
["CZĘŚĆ III. CHARAKTERYSTYKA ZADANIA"]
[null,"2. Szczegółowy opis zadania ze wskazaniem lokalizacji – miejscowości i numery budynków, posesji (opis zadania powinien być zgodny z zapisami gminnego programu usuwania azbestu i wyrobów zawierających azbest lub z zapisami programu związku międzygminnego, "]
[]
[]
[]
[]
[]
[]
[]
[]
["2. Termin rozpoczęcia zadania:",null,null,null,null,null,null,null,null,{"$f":"Harmonogram!G9","v":"00:00:00"}]
["3. Termin zakończenia zadania: ",null,null,null,null,null,null,null,null,{"$f":"Harmonogram!H9","v":"00:00:00"}]
["* lecz nie później niż do dnia 25.10.2019 r."]
["\nCZĘŚĆ IV. PRZEWIDYWANY EFEKT RZECZOWY I EKOLOGICZNY:\n"]
["1. Planowana ilość materiałów zawierających azbest, które zostaną unieszkodliwione wg źródła ich pochodzenia"]
[]
[null,"Lp","Źródło pochodzenia odpadów",null,null,null,null,null,null,null,null,null,null,null,null,null,null,null,null,"Ilość w m2",null,null,"Ilość w Mg"]
[null,1,"Pokrycia dachowe i inne elementy budowlane zawierające azbest planowane do demontażu i unieszkodliwienia z obiektów należących do osób fizycznych oraz przedsiębiorców "]
[null,2,"Pokrycia dachowe i inne elementy budowlane zawierające azbest planowane do demontażu i unieszkodliwienia z obiektów należących do jednostki samorządu terytorialnego "]
[null,3,"Materiały budowlane zawierające azbest zgromadzone na działkach gruntowych należących do osób fizycznych oraz przedsiębiorców"]
[null,4,"Materiały budowlane zawierające azbest zgromadzone na działkach gruntowych należących do jednostki samorządu terytorialnego"]
[null,null,"RAZEM"]
[]
[]
[]
[]
["2. Sposób określenia planowanego efektu ekologicznego /podać zastosowane przeliczniki m2 na Mg/ wraz z podstawą jego wyliczenia"]
[]
["Zaleca się, aby określając ilość odpadów zawierających azbest planowanych do unieszkodliwienia przyjąć, że 1m2  płyt azbestowo-cementowych waży 0,015 Mg."]
[]
["CZĘŚĆ V. OŚWIADCZENIA (proszę zaznaczyć stosowne oświadczenia)"]
[]
[null,"Oświadczam, że Gmina wywiązuje się z obowiązku uiszczania opłat za korzystanie ze środowiska  i za szczególne korzystanie z wód oraz opłat publicznoprawnych tj.:\n- innych zobowiązań wobec Funduszu,\n- ze świadczeń publicznoprawnych na rzecz Zakładu Ubezpieczeń Społecznych,\n- ze świadczeń publicznoprawnych na rzecz urzędu skarbowego;\n"]
[null,"Oświadczam, że Gmina wywiązuje się z zobowiązań cywilnoprawnych na rzecz NFOŚiGW;"]
[null,"Oświadczam, że na terenie Gminy  przeprowadzono inwentaryzację wyrobów zawierających azbest;"]
[null,"Oświadczam, że Gmina posiada Uchwałę Rady Gminy zatwierdzającą Gminny program usuwania azbestu lub w przypadku gdy gmina nie posiada własnego programu a należy do związku gmin, który posiada program – uchwałę zatwierdzającą Związkowy program usuwania azbestu oraz oświadczenie wójta (dot. akceptacji Związkowego programu w części dot. gminy);"]
[null,"Oświadczam, że zadanie zgłoszone we wniosku jest zgodne z gminnym programem usuwania azbestu i wyrobów zawierających azbest lub przyjętym przez gminę programem związku międzygminnego, którego gmina jest członkiem;"]
[null,"Oświadczam, że przy wyborze przedsięwzięć do dofinansowania Gmina weryfikowała stopień pilności usunięcia i unieszkodliwienia lub zabezpieczenia odpadów zawierających azbest;"]
[null,"Oświadczam, że Gmina umieści ogłoszenie o zamówieniu w Biuletynie Informacji Publicznej Gminy;  "]
[null,"Oświadczam, że Gmina dokona weryfikacji dokumentów potwierdzających uprawnienie Wykonawcy do wykonywania działalności związanej z usuwaniem wyrobów zawierających azbest;  "]
[]
["Świadomi odpowiedzialności karnej wynikającej z art. 233 § 1 Kodeksu karnego za składanie fałszywych zeznań oświadczamy, że zawarte we wniosku dane są zgodne ze stanem faktycznym i prawnym. Wiarygodność podanych we wniosku danych stwierdzamy własnoręcznym podpisem.\n"]
[]
[]
[]
[]
["....................................",null,null,null,null,null,null,null,null,null,null,null,"..............................................................................."]
["/Miejscowość, data/",null,null,null,null,null,null,null,null,null,null,null,"(pieczęć firmowa i podpisy osób upoważnionych do zaciągania zobowiązań majątkowych)"]
[]
[]
[]
["Wykaz dokumentów do wniosku o dotację (W-11)"]
["Do wniosku o  dotację należy załączyć wymienione niżej dokumenty:"]
["1. Harmonogram finansowo-rzeczowy (załącznik nr 1 do wniosku)."]

{"sheet":"Arkusz1","index":2,"n_rows":26,"n_cols":12,"rows_kept":26,"cut":false,"hidden":false,"merged":[[7,3,7,26],[13,2,16,17]]}
[]
[]
[]
[]
[]
[]
[]
[null,null,null,"Oświadczamy, że w przypadku niniejszego podatek VAT  stanowi / nie stanowi koszt ponoszony na jego realizację i przysługuje / nie przysługuje*  prawo jego odliczenia / odzyskania zgodnie z przepisami ustawy z dnia 11 marca 2004 r. o podatku od towarów i usług (Dz.U.2018.2174 z późn. zm.)"]
[]
[]
[]
[]
[]
[null,null,"Oświadczamy, że w przypadku niniejszego podatek VAT  stanowi / nie stanowi koszt ponoszony na jego realizację i przysługuje / nie przysługuje*  prawo jego odliczenia / odzyskania zgodnie z przepisami ustawy z dnia 11 marca 2004 r. o podatku od towarów i usług (Dz.U.2018.2174 z późn. zm.)"]
[]
[]
[]
[]
[]
[]
[]
[]
[]
[]
[null,null,null,null,null,null,null,"stanowi ",null,"przysługuje",null,"odliczenia"]
[null,null,null,null,null,null,null,"nie stanowi",null,"nie przysługuje",null,"odzyskania"]

{"sheet":"Pomocnicz","index":3,"n_rows":161,"n_cols":12,"rows_kept":161,"cut":false,"hidden":true,"merged":[]}
[null,null,null,null,"Wybierz nazwę Gminy",0]
["18","14","02",2,"ADAMÓWKA",682.7]
["18","21","01",2,"BALIGRÓD",838.21,null,null,null,null,"Przedział"]
["18","20","01",3,"BARANÓW SANDOMIERSKI",997.2,null,null,null,null,0,1]
["18","17","02",2,"BESKO",777.77,null,null,null,null,1501,0.7]
["18","10","02",2,"BIAŁOBRZEGI",977.34,null,null,null,null,2001,0.4]
["18","13","01",2,"BIRCZA",772.07]
["18","16","02",3,"BŁAŻOWA",716.08]
["18","16","03",3,"BOGUCHWAŁA",1240.79,null,null,"Gmina ","Wskaznik G","%"]
["18","18","02",2,"BOJANÓW",671.36,null,null,{"$f":"Harmonogram!J1","v":"Wybierz nazwę Gminy"},{"$f":"VLOOKUP(I10,E1:F161,2,FALSE)","v":0},{"$f":"VLOOKUP(J10,K4:L6,2,TRUE)","v":1}]
["18","11","02",2,"BOROWA",910.56]
["18","03","02",3,"BRZOSTEK",690.74]
["18","02","01",3,"BRZOZÓW",942.2]
["18","05","02",2,"BRZYSKA",622.35]
["18","17","03",2,"BUKOWSKO",962.62]
["18","04","03",2,"CHŁOPICE",768.71]
["18","16","04",2,"CHMIELNIK",1043.2]
["18","07","01",2,"CHORKÓWKA",825.41]
["18","09","02",3,"CIESZANÓW",1068.54]
["18","21","02",2,"CISNA",2310.56]
["18","06","01",2,"CMOLAS",704.21]
["18","01","03",2,"CZARNA pow. Bieszczadzki",1176.57]
["18","03","03",2,"CZARNA pow. dębicki",846.62]
["18","10","03",2,"CZARNA pow. łańcucki",1046.68]
["18","11","03",2,"CZERMIN",967.01]
["18","19","01",2,"CZUDEC",871.5]
["18","03","04",2,"DĘBICA GMINA",1452.32]
["18","03","01",1,"DĘBICA MIASTO",1749.81]
["18","05","03",2,"DĘBOWIEC",628.71]
["18","02","02",2,"DOMARADZ",648.78]
["18","13","02",2,"DUBIECKO",678.75]
["18","07","02",3,"DUKLA",977.41]
["18","02","03",2,"DYDNIA",749.88]
["18","16","05",2,"DYNÓW",625.73]
["18","16","01",1,"DYNÓW MIASTO",895.92]
["18","06","06",2,"DZIKOWIEC",511.89]
["18","13","03",2,"FREDROPOL",774.12]
["18","19","02",2,"FRYSZTAK",809.57]
["18","14","03",2,"GAĆ",829.47]
["18","11","04",2,"GAWŁUSZOWICE",856.61]
["18","16","06",3,"GŁOGÓW MAŁOPOLSKI",1562.5]
["18","20","02",2,"GORZYCE",1246.51]
["18","20","03",2,"GRĘBÓW",1125.31]
["18","08","02",2,"GRODZISKO DOLNE",805.09]
["18","02","04",2,"HACZÓW",771.12]
["18","12","01",2,"HARASIUKI",529.63]
["18","09","03",2,"HORYNIEC-ZDRÓJ",869.85]
["18","16","07",2,"HYŻNE",677.77]
["18","15","01",2,"IWIERZYCE",912.21]
["18","07","03",3,"IWONICZ-ZDRÓJ",876.26]
["18","12","02",2,"JAROCIN",553.85]
["18","04","04",2,"JAROSŁAW  GMINA",915.59]
["18","04","01",1,"JAROSŁAW MIASTO",1461.78]
["18","02","05",2,"JASIENICA ROSIELNA",751.58]
["18","05","04",2,"JASŁO GMINA",860.1]
["18","05","01",1,"JASŁO MIASTO",1783.3]
["18","07","10",2,"JAŚLISKA ",501]
["18","14","04",2,"JAWORNIK POLSKI",662.15]
["18","07","04",3,"JEDLICZE",1415.97]
["18","12","03",2,"JEŻOWE",530.74]
["18","03","05",2,"JODŁOWA",594.70000000000005]
["18","16","08",2,"KAMIEŃ",579.07000000000005]
["18","14","05",3,"KAŃCZUGA",868.98]
["18","06","02",3,"KOLBUSZOWA",1190.04]
["18","05","05",3,"KOŁACZYCE",659.71]
["18","17","04",2,"KOMAŃCZA",1290.04]
["18","07","05",2,"KORCZYNA",967.62]
["18","13","04",2,"KRASICZYN",1155.8599999999999]
["18","16","09",2,"KRASNE",1567.91]
["18","05","06",2,"KREMPNA",773.55]
["18","61","01",1,"KROSNO ",1875.24]
["18","07","06",2,"KROŚCIENKO WYŻNE",1150.3599999999999]
["18","12","04",2,"KRZESZÓW",720.98]
["18","13","05",2,"KRZYWCZA",540.86]
["18","08","03",2,"KURYŁÓWKA",724.8]
["18","04","05",2,"LASZKI",765.57]
["18","21","03",3,"LESKO",988.83]
["18","08","04",2,"LEŻAJSK GMINA",922.78]
["18","08","01",1,"LEŻAJSK MIASTO",1454.62]
["18","09","04",2,"LUBACZÓW",791.43]
["18","09","01",1,"LUBACZÓW MIASTO",1076.74]
["18","16","10",2,"LUBENIA",917.05]
["18","01","05",2,"LUTOWISKA",1943.28]
["18","10","04",2,"ŁAŃCUT",997.72]
["18","10","01",1,"ŁAŃCUT MIASTO",1595.45]
["18","06","03",2,"MAJDAN KRÓLEWSKI",574.98]
["18","10","05",2,"MARKOWA",1133.5899999999999]
["18","13","06",2,"MEDYKA",1150.78]
["18","07","07",2,"MIEJSCE PIASTOWE",896.05]
["18","11","05",2,"MIELEC GMINA",1285.73]
["18","11","01",1,"MIELEC MIASTO",1938.84]
["18","09","05",3,"NAROL",693.39]
["18","19","03",2,"NIEBYLEC",710.19]
["18","12","05",3,"NISKO",1295.47]
["18","06","04",2,"NIWISKA",667.62]
["18","20","04",3,"NOWA DĘBA",1428.07]
["18","08","05",3,"NOWA SARZYNA",1076.44]
["18","05","07",2,"NOWY ŻMIGRÓD",618.92999999999995]
["18","02","06",2,"NOZDRZEC",654.07000000000005]
["18","09","06",3,"OLESZYCE",977.64]
["18","21","04",2,"OLSZANICA",779.5]
["18","13","07",2,"ORŁY",860.02]
["18","05","08",2,"OSIEK JASIELSKI",621.12]
["18","15","02",2,"OSTRÓW",1111.05]
["18","11","06",2,"PADEW NARODOWA",867.83]
["18","04","06",2,"PAWŁOSIÓW",946.22]
["18","03","06",3,"PILZNO",1273.01]
["18","04","07",3,"PRUCHNIK",758.38]
["18","11","07",3,"PRZECŁAW",868.5]
["18","62","01",1,"PRZEMYŚL ",1352.91]
["18","13","08",2,"PRZEMYŚL GMINA",1092.4000000000001]
["18","14","06",2,"PRZEWORSK",802.69]
["18","14","01",1,"PRZEWORSK MIASTO",1546.32]
["18","18","03",2,"PYSZNICA",1064.06]
["18","18","04",2,"RADOMYŚL NAD SANEM",1054.8599999999999]
["18","11","08",3,"RADOMYŚL WIELKI",932.04]
["18","04","08",2,"RADYMNO GMINA",909.66]
["18","04","02",1,"RADYMNO MIASTO",1198.07]
["18","10","06",2,"RAKSZAWA",855.58]
["18","06","05",2,"RANIŻÓW",677.91]
["18","04","09",2,"ROKIETNICA",1026.73]
["18","15","03",3,"ROPCZYCE",1341.31]
["18","04","10",2,"ROŹWIENICA",669.85]
["18","12","06",3,"RUDNIK NAD SANEM",879.06]
["18","07","08",3,"RYMANÓW",886.13]
["18","63","01",1,"RZESZÓW ",1862.2]
["18","17","05",2,"SANOK GMINA",1022.36]
["18","17","01",1,"SANOK MIASTO",1488.45]
["18","15","04",3,"SĘDZISZÓW MAŁOPOLSKI",1095.55]
["18","14","07",3,"SIENIAWA",873.36]
["18","05","09",2,"SKOŁYSZYN",847.96]
["18","16","11",3,"SOKOŁÓW MAŁOPOLSKI",749.16]
["18","21","05",2,"SOLINA",2706.33]
["18","18","01",1,"STALOWA WOLA MIASTO",1786.99]
["18","09","07",2,"STARY DZIKÓW",1182.8699999999999]
["18","19","04",3,"STRZYŻÓW",855.57]
["18","13","09",2,"STUBNO",752.14]
["18","16","12",2,"ŚWILCZA",993.02]
["18","64","01",1,"TARNOBRZEG ",1281.08]
["18","05","11",2,"TARNOWIEC",806.78]
["18","14","08",2,"TRYŃCZA",1089]
["18","16","13",2,"TRZEBOWNISKO",1571.74]
["18","11","09",2,"TUSZÓW NARODOWY",1032.3399999999999]
["18","16","14",3,"TYCZYN",1081.51]
["18","17","06",2,"TYRAWA WOŁOSKA",611.28]
["18","12","07",3,"ULANÓW",679.47]
["18","01","08",3,"USTRZYKI DOLNE",1062.92]
["18","11","10",2,"WADOWICE GÓRNE",991.61]
["18","04","11",2,"WIĄZOWNICA",1035.17]
["18","09","08",2,"WIELKIE OCZY",750.25]
["18","15","05",2,"WIELOPOLE SKRZYŃSKIE",551.39]
["18","19","05",2,"WIŚNIOWA",717.32]
["18","07","09",2,"WOJASZÓWKA",837.5]
["18","17","07",3,"ZAGÓRZ",1009.36]
["18","18","05",3,"ZAKLIKÓW",932.64]
["18","18","06",2,"ZALESZANY",989.97]
["18","17","08",2,"ZARSZYN",935.94]
["18","14","09",2,"ZARZECZE",688.52]
["18","10","07",2,"ŻOŁYNIA",971.38]
["18","13","10",2,"ŻURAWICA",1175.71]
["18","03","07",2,"ŻYRAKÓW",1266.8900000000001]